fUST/lending_fUST_20250623
["ID","MTS","AMOUNT","RATE_DAILY","PERIOD"]
[367053406,1750638646924,-1417.56,0.00022465,2]
[367053407,1750638646934,-2612.949413,0.00022465,7]
[367053408,1750638646943,-4838.813295,0.00022465,7]
[367053409,1750638646952,-460.0,0.00022465,2]
[367053410,1750638646961,-2612.949413,0.00022465,7]
[367053411,1750638646970,-460.0,0.00022465,2]
[367053412,1750638646980,-3824.71,0.00022465,2]
[367053413,1750638646989,-1116.64,0.00022465,2]
[367053414,1750638646997,-465.11,0.00022465,2]
[367053415,1750638647006,-606.66,0.00022465,2]
[367053416,1750638647016,-552.75,0.00022465,2]
[367053417,1750638647025,-2636.2,0.00022465,2]
[367053418,1750638647035,-2406.96,0.00022465,2]
[367053419,1750638647044,-2799.53,0.00022465,2]
[367053420,1750638647055,-460.0,0.00022465,2]
[367053421,1750638647064,-460.0,0.00022465,2]
[367053422,1750638647073,-460.0,0.00022465,2]
[367053423,1750638647083,-263.83723393,0.00022465,2]
[367053424,1750638647092,-460.0,0.00022465,2]
[367053425,1750638647101,-460.0,0.00022465,2]
[367053426,1750638647111,-460.0,0.00022465,2]
[367053427,1750638647120,-151.0,0.00022465,7]
[367053428,1750638647130,-151.0,0.00022465,7]
[367053429,1750638647139,-460.0,0.00022465,2]
[367053430,1750638647148,-549.23,0.00022465,2]
[367053431,1750638647157,-284.06408343,0.00022465,2]
[367053432,1750638647167,-151.0,0.00022465,7]
[367053433,1750638647176,-151.0,0.00022465,7]
[367053434,1750638647186,-446.20605393,0.00022465,2]
[367053435,1750638647195,-621.69,0.00022465,2]
[367053436,1750638647205,-460.0,0.00022465,2]
[367053437,1750638647215,-460.0,0.00022465,2]
[367053438,1750638647224,-9085.11,0.00022465,2]
[367053439,1750638647233,-1684.64,0.00022465,2]
[367053440,1750638647243,-460.0,0.00022465,2]
[367053441,1750638647253,-1059.16,0.00022465,2]
[367053442,1750638647262,-460.0,0.00022465,2]
[367053443,1750638647272,-460.0,0.00022465,2]
[367053444,1750638647282,-460.0,0.00022465,2]
[367053445,1750638647292,-5798.47,0.00022465,2]
[367053446,1750638647302,-460.0,0.00022465,2]
[367053447,1750638647312,-460.0,0.00022465,2]
[367053448,1750638647323,-20915.72,0.00022465,2]
[367053449,1750638647332,-460.0,0.00022465,2]
[367053450,1750638647342,-1571.79,0.00022465,2]
[367053451,1750638647351,-676.05,0.00022465,2]
[367053452,1750638647361,-3530.71,0.00022465,2]
[367053453,1750638647372,-460.0,0.00022465,2]
[367053454,1750638647382,-1368.17,0.00022465,2]
[367053455,1750638647392,-460.0,0.00022465,2]
[367053456,1750638647402,-460.0,0.00022465,2]
[367053457,1750638647412,-460.0,0.00022465,2]
[367053458,1750638647421,-558.18,0.00022465,2]
[367053459,1750638647431,-208.77478592,0.00022465,2]
[367053460,1750638647441,-490.0,0.00022465,2]
[367053461,1750638647451,-558.47593317,0.00022536,2]
[367053462,1750638647461,-1719.59952654,0.0002259,7]
[367053463,1750638647470,-538.18231301,0.00022678,2]
[367053464,1750638647480,-839.43,0.00022709,2]
[367053465,1750638647490,-2302.2740815,0.00022727,2]
[367053466,1750638647499,-300.480369,0.00022727,7]
[367053467,1750638647509,-300.480369,0.00022727,7]
[367053468,1750638647519,-489.04,0.00022738,2]
[367053469,1750638647529,-460.0,0.00022738,2]
[367053470,1750638647538,-460.0,0.00022738,2]
[367053471,1750638647548,-839.43,0.00022738,2]
[367053472,1750638647559,-839.43,0.00022738,2]
[367053473,1750638647569,-839.43,0.00022738,2]
[367053474,1750638647580,-839.43,0.00022738,2]
[367053475,1750638647590,-839.43,0.00022738,2]
[367053476,1750638647600,-839.43,0.00022738,2]
[367053477,1750638647611,-839.43,0.00022738,2]
[367053478,1750638647621,-460.0,0.00022738,2]
[367053479,1750638647631,-2017.92,0.00022738,2]
[367053480,1750638647641,-1895.47,0.00022738,2]
[367053481,1750638647651,-119.07883746,0.00022738,2]
[367053482,1750638648015,-3530.36283927,0.00022738,2]
[367053483,1750638648027,-2207.55940084,0.00022738,2]
[367053484,1750638649653,-287.1235074,0.00021906,10]
[367053485,1750638650329,-445.8764926,0.00021906,10]
[367053486,1750638650339,-191.02,0.00021906,3]
[367053487,1750638650348,-1100.94,0.00021917,2]
[367053488,1750638650358,-460.0,0.00021917,2]
[367053489,1750638650367,-460.0,0.00021917,2]
[367053490,1750638650377,-460.0,0.00021917,2]
[367053491,1750638650386,-460.0,0.00021917,2]
[367053492,1750638650395,-460.0,0.00021917,2]
[367053493,1750638650404,-460.0,0.00021917,2]
[367053494,1750638650413,-500.0,0.00022191,2]
[367053495,1750638650422,-545.32395539,0.00022191,2]
[367053496,1750638650441,-555.61604461,0.00022191,2]
[367053497,1750638650450,-460.0,0.00022191,2]
[367053498,1750638650459,-460.0,0.00022191,2]
[367053499,1750638650469,-460.0,0.00022191,2]
[367053500,1750638650478,-460.0,0.00022191,2]
[367053501,1750638650487,-43.84498934,0.00022191,2]
[367053502,1750638650499,-416.15501066,0.00022191,2]
[367053503,1750638650508,-460.0,0.00022191,2]
[367053504,1750638650518,-500.0,0.00022465,2]
[367053505,1750638650527,-1100.94,0.00022465,2]
[367053506,1750638650537,-460.0,0.00022465,2]
[367053507,1750638650546,-460.0,0.00022465,2]
[367053508,1750638650556,-460.0,0.00022465,2]
[367053509,1750638650565,-460.0,0.00022465,2]
[367053510,1750638650575,-151.0,0.00022465,7]
[367053511,1750638650584,-460.0,0.00022465,2]
[367053512,1750638650593,-460.0,0.00022465,2]
[367053513,1750638650603,-151.0,0.00022465,7]
[367053514,1750638650612,-1281.93892243,0.00022738,2]
[367053515,1750638650622,-1993.69,0.00022738,2]
[367053516,1750638650631,-485.41,0.00022738,2]
[367053517,1750638650640,-1253.05,0.00022738,2]
[367053518,1750638650649,-460.0,0.00022738,2]
[367053519,1750638650658,-3004.42606691,0.00022738,2]
[367053520,1750638650670,-488.44838508,0.00022738,2]
[367053521,1750638650681,-270.9325,0.00022738,2]
[367053522,1750638650692,-504.3,0.00022738,2]
[367053523,1750638651238,-37.49040772,0.00021917,2]
[367053524,1750638651250,-422.50959228,0.00021917,2]
[367053525,1750638651260,-364.99040772,0.00021917,2]
[367053527,1750639052775,249.380609,0.00013699,2]
[367053528,1750639053669,-210.31204284,0.00020187,2]
[367053529,1750639081519,-39.06856616,0.00020187,2]
[367053530,1750639081544,-197.13608938,0.00020365,2]
[367053531,1750639159353,-309.32166646,0.000218,3]
[367053532,1750639173920,-168.473678,0.000219,6]
[367053533,1750639203104,-151.0,0.00020365,2]
[367053534,1750639553122,-255.97495236,0.00020192,2]
[367053535,1750639553142,-178.404389,0.00020364,2]
[367053536,1750639553392,-150.0,0.00020365,2]
[367053537,1750639553413,-176.8265481,0.00020689,2]
[367053538,1750639553435,-23.89911946,0.00020817,2]
[367053539,1750639625095,-419.0046513,0.00020691,2]
[367053540,1750639625115,-300.0,0.00020816,2]
[367053541,1750639625136,-300.0,0.00020817,2]
[367053542,1750639625163,-300.0,0.00020817,2]
[367053543,1750639625184,-1200.0,0.00020817,2]
[367053544,1750639625204,-300.0,0.00020817,2]
[367053545,1750639625224,-24900.0,0.00020818,2]
[367053546,1750639625245,-250.0,0.0002117,2]
[367053547,1750639625265,-200.22507121,0.00021416,5]
[367053548,1750639625286,-268.45331527,0.00021698,2]
[367053549,1750639625306,-465.123,0.00021737,2]
[367053550,1750639625329,-500.0,0.00021796,2]
[367053551,1750639625351,-500.0,0.00021796,2]
[367053552,1750639625373,-453.66546546,0.00021796,2]
[367053553,1750639625398,-500.0,0.00021796,2]
[367053554,1750639625425,-500.0,0.00021796,2]
[367053555,1750639625448,-500.0,0.00021796,2]
[367053556,1750639625468,-4690.67833354,0.000218,3]
[367053557,1750639625490,-5665.91794324,0.00021817,2]
[367053558,1750639625511,-807.99191536,0.00021886,2]
[367053559,1750639625532,-15301.1332715,0.000219,5]
[367053560,1750639625563,-2310.55935128,0.000219,6]
[367053561,1750639625584,-1525.64,0.00021907,3]
[367053562,1750639625606,-762.82,0.00021907,3]
[367053563,1750639625627,-381.41,0.00021907,3]
[367053564,1750639625649,-190.71,0.00021907,3]
[367053565,1750639625671,-572.13,0.00021907,3]
[367053566,1750639625692,-2401.07,0.00021907,10]
[367053567,1750639625714,-500.0,0.00021916,2]
[367053568,1750639625736,-440.30861815,0.00021916,2]
[367053569,1750639625759,-500.0,0.00021916,2]
[367053570,1750639625781,-500.0,0.00021916,2]
[367053571,1750639625804,-500.0,0.00021916,2]
[367053572,1750639625827,-500.0,0.00021916,2]
[367053573,1750639625848,-312.68070684,0.00021916,2]
[367053574,1750639625868,-500.0,0.00021916,7]
[367053575,1750639625888,-215.174,0.00021916,2]
[367053576,1750639625909,-1000.0,0.00021916,2]
[367053577,1750639625929,-1000.0,0.00021916,2]
[367053578,1750639625950,-1000.0,0.00021916,2]
[367053579,1750639625970,-230.04,0.00021916,2]
[367053580,1750639625989,-460.0,0.00021917,2]
[367053581,1750639626012,-460.0,0.00021917,2]
[367053582,1750639626033,-460.0,0.00021917,2]
[367053583,1750639626052,-460.0,0.00021917,2]
[367053584,1750639626072,-460.0,0.00021917,2]
[367053585,1750639626096,-1354.6,0.00021917,2]
[367053586,1750639626115,-460.0,0.00021917,2]
[367053587,1750639626137,-460.0,0.00021917,2]
[367053588,1750639626160,-460.0,0.00021917,2]
[367053589,1750639626180,-460.0,0.00021917,2]
[367053590,1750639626200,-500.0,0.00021917,2]
[367053591,1750639626220,-597.77621569,0.00021917,2]
[367053592,1750639626240,-460.0,0.00021917,2]
[367053593,1750639626259,-460.0,0.00021917,2]
[367053594,1750639626280,-460.0,0.00021917,2]
[367053595,1750639626300,-460.0,0.00021917,2]
[367053596,1750639626320,-460.0,0.00021917,2]
[367053597,1750639626341,-460.0,0.00021917,2]
[367053598,1750639626362,-460.0,0.00021917,2]
[367053599,1750639626384,-379.33988823,0.00021917,2]
[367053600,1750639626407,-460.0,0.00021917,2]
[367053601,1750639626427,-460.0,0.00021917,2]
[367053602,1750639626448,-460.0,0.00021917,2]
[367053603,1750639626469,-460.0,0.00021917,2]
[367053604,1750639626490,-405.90553827,0.00021917,2]
[367053605,1750639626510,-460.0,0.00021917,2]
[367053606,1750639626530,-460.0,0.00021917,2]
[367053607,1750639626552,-460.0,0.00021917,2]
[367053608,1750639626572,-460.0,0.00021917,2]
[367053609,1750639626592,-460.0,0.00021917,2]
[367053610,1750639626613,-460.0,0.00021917,2]
[367053611,1750639626635,-518.93534853,0.00021917,2]
[367053612,1750639626658,-460.0,0.00021917,2]
[367053613,1750639626679,-460.0,0.00021917,2]
[367053614,1750639626699,-460.0,0.00021917,2]
[367053615,1750639626720,-460.0,0.00021917,2]
[367053616,1750639626741,-460.0,0.00021917,2]
[367053617,1750639626761,-460.0,0.00021917,2]
[367053618,1750639626781,-460.0,0.00021917,2]
[367053619,1750639626802,-400.0,0.00021917,2]
[367053620,1750639626822,-460.0,0.00021917,2]
[367053621,1750639626842,-460.0,0.00021917,2]
[367053622,1750639626862,-731.33,0.00021917,2]
[367053623,1750639626881,-440.0,0.00021917,2]
[367053624,1750639626902,-460.0,0.00021917,2]
[367053625,1750639626923,-460.0,0.00021917,2]
[367053626,1750639626943,-460.0,0.00021917,2]
[367053627,1750639626963,-460.0,0.00021917,2]
[367053628,1750639626983,-423.52968715,0.00021917,2]
[367053629,1750639627002,-460.0,0.00021917,2]
[367053630,1750639627022,-460.0,0.00021917,2]
[367053631,1750639627042,-460.0,0.00021917,2]
[367053632,1750639627061,-460.0,0.00021917,2]
[367053633,1750639627086,-464.46217809,0.00021917,2]
[367053634,1750639627110,-444.04010613,0.00021917,2]
[367053635,1750639627131,-460.0,0.00021917,2]
[367053636,1750639627153,-460.0,0.00021917,2]
[367053637,1750639627174,-460.0,0.00021917,2]
[367053638,1750639627196,-460.0,0.00021917,2]
[367053639,1750639627216,-460.0,0.00021917,2]
[367053640,1750639627238,-460.0,0.00021917,2]
[367053641,1750639627260,-460.0,0.00021917,2]
[367053642,1750639627281,-460.0,0.00021917,2]
[367053643,1750639627303,-460.0,0.00021917,2]
[367053644,1750639627326,-460.0,0.00021917,2]
[367053645,1750639627349,-191.38634005,0.00021917,2]
[367053646,1750639627372,-460.0,0.00021917,2]
[367053647,1750639627394,-460.0,0.00021917,2]
[367053648,1750639627416,-460.0,0.00021917,2]
[367053649,1750639627437,-460.0,0.00021917,2]
[367053650,1750639627458,-460.0,0.00021917,2]
[367053651,1750639627478,-460.0,0.00021917,2]
[367053652,1750639627499,-460.0,0.00021917,2]
[367053653,1750639627522,-460.0,0.00021917,2]
[367053654,1750639627544,-359.54710579,0.00021917,2]
[367053655,1750639627564,-460.0,0.00021917,2]
[367053656,1750639627589,-460.0,0.00021917,2]
[367053657,1750639627611,-460.0,0.00021917,2]
[367053658,1750639627633,-970.01,0.00021917,2]
[367053659,1750639627656,-460.0,0.00021917,2]
[367053660,1750639627678,-460.0,0.00021917,2]
[367053661,1750639627701,-460.0,0.00021917,2]
[367053662,1750639627725,-460.0,0.00021917,2]
[367053663,1750639627746,-460.0,0.00021917,2]
[367053664,1750639627768,-510.23087786,0.00021917,2]
[367053665,1750639627789,-460.0,0.00021917,2]
[367053666,1750639627811,-460.0,0.00021917,2]
[367053667,1750639627833,-460.0,0.00021917,2]
[367053668,1750639628052,-460.0,0.00021917,2]
[367053669,1750639628076,-460.0,0.00021917,2]
[367053670,1750639628100,-445.71375642,0.00021917,2]
[367053671,1750639628123,-368.0420577,0.00021917,2]
[367053672,1750639628144,-460.0,0.00021917,2]
[367053673,1750639628168,-460.0,0.00021917,2]
[367053674,1750639628190,-460.0,0.00021917,2]
[367053675,1750639628212,-460.0,0.00021917,2]
[367053676,1750639628233,-460.0,0.00021917,2]
[367053677,1750639628256,-570.22,0.00021917,2]
[367053678,1750639628280,-460.0,0.00021917,2]
[367053679,1750639628308,-460.0,0.00021917,2]
[367053680,1750639628331,-460.0,0.00021917,2]
[367053681,1750639628354,-460.0,0.00021917,2]
[367053682,1750639628375,-460.0,0.00021917,2]
[367053683,1750639628396,-1019.2,0.00021917,2]
[367053684,1750639628419,-460.0,0.00021917,2]
[367053685,1750639628441,-460.0,0.00021917,2]
[367053686,1750639628466,-1773.53,0.00021917,2]
[367053687,1750639628487,-460.0,0.00021917,2]
[367053688,1750639628509,-460.0,0.00021917,2]
[367053689,1750639628531,-460.0,0.00021917,2]
[367053690,1750639628551,-460.0,0.00021917,2]
[367053691,1750639628572,-460.0,0.00021917,2]
[367053692,1750639628599,-447.26132407,0.00021917,2]
[367053693,1750639628620,-262.43580363,0.00021917,2]
[367053694,1750639628643,-460.0,0.00021917,2]
[367053695,1750639628667,-460.0,0.00021917,2]
[367053696,1750639628688,-460.0,0.00021917,2]
[367053697,1750639628710,-460.0,0.00021917,2]
[367053698,1750639628732,-460.0,0.00021917,2]
[367053699,1750639628754,-460.0,0.00021917,2]
[367053700,1750639628778,-460.0,0.00021917,2]
[367053701,1750639628799,-460.0,0.00021917,2]
[367053702,1750639628821,-460.0,0.00021917,2]
[367053703,1750639628843,-460.0,0.00021917,2]
[367053704,1750639628864,-460.0,0.00021917,2]
[367053705,1750639628885,-206.37964144,0.00021917,2]
[367053706,1750639628909,-460.0,0.00021917,2]
[367053707,1750639628930,-460.0,0.00021917,2]
[367053708,1750639628952,-460.0,0.00021917,2]
[367053709,1750639628975,-500.0,0.00021917,2]
[367053710,1750639629006,-460.0,0.00021917,2]
[367053711,1750639629028,-460.0,0.00021917,2]
[367053712,1750639629049,-460.0,0.00021917,2]
[367053713,1750639629072,-460.0,0.00021917,2]
[367053714,1750639629096,-460.0,0.00021917,2]
[367053715,1750639629116,-460.0,0.00021917,2]
[367053716,1750639629138,-460.0,0.00021917,2]
[367053717,1750639629161,-460.0,0.00021917,2]
[367053718,1750639629181,-460.0,0.00021917,2]
[367053719,1750639629200,-494.89,0.00021917,2]
[367053720,1750639629220,-460.0,0.00021917,2]
[367053721,1750639629240,-460.0,0.00021917,2]
[367053722,1750639629263,-460.0,0.00021917,2]
[367053723,1750639629282,-460.0,0.00021917,2]
[367053724,1750639629304,-460.0,0.00021917,2]
[367053725,1750639629324,-460.0,0.00021917,2]
[367053726,1750639629343,-460.0,0.00021917,2]
[367053727,1750639629365,-460.0,0.00021917,2]
[367053728,1750639629388,-460.0,0.00021917,2]
[367053729,1750639629410,-460.0,0.00021917,2]
[367053730,1750639629433,-460.0,0.00021917,2]
[367053731,1750639629456,-460.0,0.00021917,2]
[367053732,1750639629481,-460.0,0.00021917,2]
[367053733,1750639629503,-460.0,0.00021917,2]
[367053734,1750639629524,-652.66,0.00021917,2]
[367053735,1750639629545,-460.0,0.00021917,2]
[367053736,1750639629568,-460.0,0.00021917,2]
[367053737,1750639629588,-460.0,0.00021917,2]
[367053738,1750639629609,-460.0,0.00021917,2]
[367053739,1750639629631,-460.0,0.00021917,2]
[367053740,1750639629652,-624.55,0.00021917,2]
[367053741,1750639629676,-345.38145839,0.00021917,2]
[367053742,1750639629698,-1005.62,0.00021917,2]
[367053743,1750639629719,-190.80767353,0.00021917,2]
[367053744,1750639630637,-269.19232647,0.00021917,2]
[367053745,1750639630660,-460.0,0.00021917,2]
[367053746,1750639630679,-460.0,0.00021917,2]
[367053747,1750639630700,-460.0,0.00021917,2]
[367053748,1750639630720,-460.0,0.00021917,2]
[367053749,1750639630740,-460.0,0.00021917,2]
[367053750,1750639630761,-283.46067853,0.00021917,2]
[367053751,1750639630781,-969.13,0.00021917,2]
[367053752,1750639630802,-489.31,0.00021917,2]
[367053753,1750639630824,-163.94024943,0.00021917,2]
[367053754,1750639634089,-296.05975057,0.00021917,2]
[367053755,1750639634110,-493.28,0.00021917,2]
[367053756,1750639634133,-460.0,0.00021917,2]
[367053757,1750639634155,-460.0,0.00021917,2]
[367053758,1750639634177,-460.0,0.00021917,2]
[367053759,1750639634198,-580.90744127,0.00021917,2]
[367053761,1750639683291,174.97871252,0.00019817,2]
[367053762,1750639742071,150.0,0.00019817,2]
[367053763,1750639753105,-153.58497142,0.00021162,2]
[367053764,1750639756139,-160.0,0.00021796,2]
[367053765,1750639756165,-187.57983738,0.00021807,2]
[367053766,1750639756194,-5924.64207651,0.00021817,2]
[367053767,1750639790035,539.14615047,0.00021675,2]
[367053771,1750639832081,1501.98019281,0.00021,7]
[367053772,1750639832104,2211.31017499,0.00021,7]
[367053773,1750639832125,2206.84153307,0.00021,7]
[367053817,1750639832641,-765.34424799,0.00021878,2]
[367053819,1750639832651,-1200.0,0.00021898,2]
[367053822,1750639832661,-2692.38240711,0.000219,6]
[367053823,1750639832671,-709.28,0.00021907,3]
[367053825,1750639832681,-354.64,0.00021907,3]
[367053827,1750639832691,-177.32,0.00021907,3]
[367053829,1750639832702,-531.98,0.00021907,3]
[367053831,1750639832712,-300.0,0.00021915,2]
[367053833,1750639832722,-240.0,0.00021915,2]
[367053835,1750639832732,-500.0,0.00021916,2]
[367053837,1750639832742,-500.0,0.00021916,2]
[367053839,1750639832752,-517.32732296,0.00021916,2]
[367053842,1750639832762,-500.0,0.00021916,2]
[367053844,1750639832771,-500.0,0.00021916,2]
[367053847,1750639832780,-500.0,0.00021916,2]
[367053849,1750639832789,-636.95709894,0.00021916,2]
[367053851,1750639832799,-500.0,0.00021916,2]
[367053853,1750639832810,-500.0,0.00021916,2]
[367053855,1750639832819,-500.0,0.00021916,2]
[367053857,1750639832828,-500.0,0.00021916,2]
[367053859,1750639832838,-202.96046481,0.00021916,2]
[367053861,1750639832850,-297.03953519,0.00021916,2]
[367053863,1750639832860,-182.05831736,0.00021916,2]
[367053865,1750639832869,-500.0,0.00021916,2]
[367053867,1750639832878,-500.0,0.00021916,2]
[367053869,1750639832887,-634.89255873,0.00021917,2]
[367053871,1750639832897,-481.76,0.00021917,2]
[367053873,1750639832906,-521.74,0.00021917,2]
[367053875,1750639832916,-460.0,0.00021917,2]
[367053877,1750639832925,-733.87,0.00021917,2]
[367053879,1750639832935,-460.0,0.00021917,2]
[367053881,1750639832945,-695.13,0.00021917,2]
[367053883,1750639832954,-460.0,0.00021917,2]
[367053885,1750639832963,-402.0110064,0.00021917,2]
[367053887,1750639832973,-460.0,0.00021917,2]
[367053889,1750639832983,-448.50286984,0.00021917,2]
[367053891,1750639832992,-460.0,0.00021917,2]
[367053893,1750639833002,-460.0,0.00021917,2]
[367053895,1750639833013,-460.0,0.00021917,2]
[367053897,1750639833024,-460.0,0.00021917,2]
[367053899,1750639833033,-493.8,0.00021917,2]
[367053901,1750639833044,-460.0,0.00021917,2]
[367053903,1750639833054,-333.68613582,0.00021917,2]
[367053905,1750639833067,-460.0,0.00021917,2]
[367053906,1750639833078,-460.0,0.00021917,2]
[367053907,1750639833088,-460.0,0.00021917,2]
[367053908,1750639833098,-489.0698376,0.00021917,2]
[367053909,1750639833109,-460.0,0.00021917,2]
[367053910,1750639833118,-460.0,0.00021917,2]
[367053911,1750639833128,-460.0,0.00021917,2]
[367053912,1750639833139,-460.0,0.00021917,2]
[367053913,1750639833149,-460.0,0.00021917,2]
[367053914,1750639833160,-717.48,0.00021917,2]
[367053915,1750639833172,-460.0,0.00021917,2]
[367053916,1750639833181,-575.94,0.00021917,2]
[367053917,1750639833191,-460.0,0.00021917,2]
[367053918,1750639833200,-460.0,0.00021917,2]
[367053919,1750639833211,-460.0,0.00021917,2]
[367053920,1750639833221,-460.0,0.00021917,2]
[367053922,1750639833231,-575.61,0.00021917,2]
[367053924,1750639833240,-460.0,0.00021917,2]
[367053926,1750639833253,-500.0,0.00021917,2]
[367053928,1750639833263,-500.0,0.00021917,2]
[367053930,1750639833272,-500.0,0.00021917,2]
[367053931,1750639833282,-500.0,0.00021917,2]
[367053932,1750639833291,-460.0,0.00021917,2]
[367053933,1750639833301,-460.0,0.00021917,2]
[367053934,1750639833315,-460.0,0.00021917,2]
[367053935,1750639833325,-460.0,0.00021917,2]
[367053936,1750639833334,-460.0,0.00021917,2]
[367053937,1750639833344,-460.0,0.00021917,2]
[367053938,1750639833353,-460.0,0.00021917,2]
[367053939,1750639833363,-460.0,0.00021917,2]
[367053940,1750639833373,-460.0,0.00021917,2]
[367053942,1750639833383,-460.0,0.00021917,2]
[367053944,1750639833393,-580.28,0.00021917,2]
[367053946,1750639833402,-971.13,0.00021917,2]
[367053948,1750639833412,-460.0,0.00021917,2]
[367053950,1750639833421,-460.0,0.00021917,2]
[367053952,1750639833430,-460.0,0.00021917,2]
[367053954,1750639833440,-406.47850141,0.00021917,2]
[367053956,1750639833450,-460.0,0.00021917,2]
[367053958,1750639833460,-460.0,0.00021917,2]
[367053960,1750639833470,-460.0,0.00021917,2]
[367053962,1750639833479,-460.0,0.00021917,2]
[367053964,1750639833488,-570.80539329,0.00021917,2]
[367053966,1750639833498,-380.44955845,0.00021917,2]
[367053968,1750639833508,-542.21,0.00021917,2]
[367053970,1750639833517,-460.0,0.00021917,2]
[367053972,1750639833527,-460.0,0.00021917,2]
[367053974,1750639833536,-462.93,0.00021917,2]
[367053976,1750639833547,-460.0,0.00021917,2]
[367053978,1750639833556,-460.0,0.00021917,2]
[367053980,1750639833568,-528.07452443,0.00021917,2]
[367053982,1750639833579,-460.0,0.00021917,2]
[367053984,1750639833588,-460.0,0.00021917,2]
[367053986,1750639833598,-460.0,0.00021917,2]
[367053988,1750639833608,-460.0,0.00021917,2]
[367053990,1750639833619,-460.0,0.00021917,2]
[367053992,1750639833629,-460.0,0.00021917,2]
[367053994,1750639833639,-460.0,0.00021917,2]
[367053996,1750639833649,-460.0,0.00021917,2]
[367053998,1750639833658,-500.0,0.00021917,2]
[367054000,1750639833668,-460.0,0.00021917,2]
[367054002,1750639833678,-460.0,0.00021917,2]
[367054004,1750639833688,-460.0,0.00021917,2]
[367054006,1750639833699,-647.88,0.00021917,2]
[367054008,1750639833709,-652.67,0.00021917,2]
[367054010,1750639833721,-460.0,0.00021917,2]
[367054012,1750639833732,-975.0,0.00021917,2]
[367054014,1750639833743,-460.0,0.00021917,2]
[367054017,1750639833755,-460.0,0.00021917,2]
[367054019,1750639833767,-460.0,0.00021917,2]
[367054020,1750639833777,-963.32,0.00021917,2]
[367054022,1750639833787,-460.0,0.00021917,2]
[367054025,1750639833798,-460.0,0.00021917,2]
[367054027,1750639833810,-460.0,0.00021917,2]
[367054029,1750639833822,-460.0,0.00021917,2]
[367054031,1750639833832,-1615.31,0.00021917,2]
[367054033,1750639833844,-460.0,0.00021917,2]
[367054035,1750639833854,-460.0,0.00021917,2]
[367054037,1750639833864,-460.0,0.00021917,2]
[367054039,1750639833874,-411.0,0.00021917,2]
[367054041,1750639833884,-460.0,0.00021917,2]
[367054043,1750639833896,-460.0,0.00021917,2]
[367054045,1750639833906,-262.26086521,0.00021917,2]
[367054047,1750639833916,-460.0,0.00021917,2]
[367054049,1750639833927,-460.00000001,0.00021917,2]
[367054051,1750639833937,-460.0,0.00021917,2]
[367054053,1750639833948,-1308.56,0.00021917,2]
[367054055,1750639833958,-460.0,0.00021917,2]
[367054057,1750639833968,-460.0,0.00021917,2]
[367054059,1750639833979,-1593.64,0.00021917,2]
[367054061,1750639833989,-460.0,0.00021917,2]
[367054063,1750639833999,-1149.69,0.00021917,2]
[367054065,1750639834008,-460.0,0.00021917,2]
[367054067,1750639834018,-577.72705857,0.00021917,2]